Workbook

Sheet Datos entrada
N1: PROFESIÓN | P1: MUERTE | Q1: IPA | R1: COMPLEMENTARIOS ACC. | S1: DEPORTE | T1: REGLAS DE SUSCRIPCION PARA TODAS LAS GARANTÍAS
N2: ABOGADO/A | O2: =LOWER(N2) -> abogado/a | P2: - | Q2: - | R2: - | S2: Sin práctica deportiva/ocio de riesgo | T2: Sin recargo
N3: ADMINISTRATIVO/A | O3: =LOWER(N3) -> administrativo/a | P3: - | Q3: - | R3: - | S3: Deporte Profesional | T3: Retenido
N4: AGENTE COMERCIAL | O4: agente comercial | P4: - | Q4: - | R4: - | S4: Aerobic | T4: Sin recargo
N5: AGENTE DE SEGUROS | O5: agente de seguros | P5: - | Q5: - | R5: - | S5: Ala Delta | T5: Retenido
N6: AGENTE DE VIAJES | O6: agente de viajes | P6: - | Q6: - | R6: - | S6: Artes marciales | T6: Sin recargo
N7: AGRICULTOR | O7: agricultor | P7: - | Q7: 1 | R7: 0.5 | S7: Atletismo | T7: Sin recargo
N8: ALBAÑIL | O8: albañil | P8: - | Q8: 1 | R8: 1 | S8: Bádminton | T8: Sin recargo
N9: AMA/O DE CASA | O9: ama/o de casa | P9: - | Q9: - | R9: - | S9: Baloncesto | T9: Sin recargo
N10: ANDAMIAJE (Colocación alturas) | O10: andamiaje (colocación alturas) | P10: Retenido | Q10: Retenido | R10: Retenido | S10: Béisbol | T10: Sin recargo
B11: Tarificador Seguro Asisa Vida Mujer | N11: ARQUITECTO/A | O11: arquitecto/a | P11: - | Q11: - | R11: - | S11: Biatlón/Triatlón/Pentatlón | T11: Retenido
N12: ARQUITECTO/A TECNICO | O12: arquitecto/a tecnico | P12: Retenido | Q12: Retenido | R12: Retenido | S12: Bolos | T12: Sin recargo
N13: ASESOR/A FISCAL | O13: asesor/a fiscal | P13: - | Q13: - | R13: - | S13: Bouldering (escalada en roca sin protección) | T13: Retenido
A14: Datos de entrada de la asegurada | B14: 140000 | N14: AUXILIAR ADMINISTRATIVO | O14: auxiliar administrativo | P14: - | Q14: - | R14: - | S14: Boxeo | T14: Retenido
N15: AUXILIAR DE CLÍNICA | O15: auxiliar de clínica | P15: - | Q15: - | R15: - | S15: Buceo deportivo | T15: Retenido
A16: Fecha efecto | B16: 2017-01-01 | N16: AUXILIAR DE ENFERMERIA | O16: auxiliar de enfermeria | P16: - | Q16: - | R16: - | S16: Canoa | T16: Sin recargo
A17: (fecha en que tomará efecto la póliza en Asisa Vida) | N17: BARRENDERO | O17: barrendero | P17: - | Q17: 1 | R17: 1 | S17: Carreras automóviles | T17: Retenido
H18: Si | L18: 10000 | N18: BIOLOGO/A | O18: biologo/a | P18: - | Q18: - | R18: - | S18: Carreras motocicletas | T18: Retenido
A19: Fecha de nacimiento | B19: 39 | C19: 1967-03-20 | H19: No | I19: Hombre | L19: 20000 | N19: BOMBERO | O19: bombero | P19: Retenido | Q19: Retenido | R19: Retenido | S19: Caza | T19: Retenido
A20: Nombre y apellidos | C20: Sra.Silvia Pose | I20: Mujer | L20: 30000 | N20: CAMARERO | O20: camarero | P20: - | Q20: - | R20: - | S20: Ciclismo | T20: Sin recargo
A21: Sexo | C21: Mujer | I21: =YEARFRAC(B16,C19) -> 49.78055556 | J21: =INT(I21) -> 49 | K21: =IF((I21-J21)>=0.5,INT(I21)+1,INT(I21)) -> 50 | N21: CAMIONERO | O21: camionero | P21: - | Q21: 1 | R21: 1 | S21: Críquet | T21: Sin recargo
A22: NIF | C22: xxxxx | N22: CARNICERO/A | O22: carnicero/a | P22: - | Q22: - | R22: - | S22: Escalada | T22: Retenido
A23: Edad actuarial | C23: =IF(K21<18,"Edad actuarial inferior al límite legal",IF(K21>64,"Edad de entrada superior al límite",K21)) -> 50 | H23: Anual | N23: CARTERO/A | O23: cartero/a | P23: - | Q23: - | R23: - | S23: Espelología | T23: Retenido
A24: Deportes/ocio (*) | C24: Sin práctica deportiva/ocio de riesgo | H24: Semestral | N24: COCINERO/A | O24: cocinero/a | P24: - | Q24: - | R24: - | S24: Esquí acuático | T24: Sin recargo
A25: Profesión (*) | C25: administrativo/a | H25: Trimestral | N25: COMERCIAL | O25: comercial | P25: - | Q25: - | R25: - | S25: Esquí de velocidad | T25: Retenido
A26: (*) Otros Deportes/ocio y profesiones consultar | H26: Mensual | N26: COMERCIANTE | O26: comerciante | P26: - | Q26: - | R26: - | S26: Esquí nieve | T26: Sin recargo
N27: CONDUCTOR VEHÍCULO MATERIAL PELIGROSO | O27: conductor vehículo material peligroso | P27: Retenido | Q27: Retenido | R27: Retenido | S27: Esquí nieve fuera pistas | T27: Retenido
A28: Modalidades del seguro | N28: CONDUCTOR VEHÍCULO PESADO | O28: conductor vehículo pesado | P28: - | Q28: 1 | R28: 1 | S28: Exhibición aérea, carreras aéreas | T28: Retenido
N29: CONTABLE | O29: contable | P29: - | Q29: - | R29: - | S29: Fútbol | T29: Sin recargo
N30: DELINEANTE | O30: delineante | P30: - | Q30: - | R30: - | S30: Fútbol Americano amateur | T30: Retenido
A31: Ejecutiva | C31: SI | N31: DEPENDIENTE/A | O31: dependiente/a | P31: - | Q31: - | R31: - | S31: Gimnasia | T31: Sin recargo
N32: DISEÑADOR/A | O32: diseñador/a | P32: - | Q32: - | R32: - | S32: Globo | T32: Sin recargo
A33: Capitales | N33: DISEÑADOR/A GRAFICO/A | O33: diseñador/a grafico/a | P33: - | Q33: - | R33: - | S33: Golf | T33: Sin recargo
N34: ECONOMISTA | O34: economista | P34: - | Q34: - | R34: - | S34: Halterofilia | T34: Retenido
A35: Capital fallecimiento | B35: 100000 | C35: (mínimo 18.000 €, máximo 300.000 €) | N35: EDUCADOR/A INFANTIL | O35: educador/a infantil | P35: - | Q35: - | R35: - | S35: Hípica | T35: Sin recargo
A36: Capital cáncer femenino | B36: 10000 | C36: (Elegir 10.000 €, 20.000 € o 30.000 €) | N36: ELECTRICISTA ALTA TENSIÓN | O36: electricista alta tensión | P36: Retenido | Q36: Retenido | R36: Retenido | S36: Hockey (hierba, hielo) | T36: Sin recargo
N37: ELECTRICISTA BAJA TENSIÓN | O37: electricista baja tensión | P37: - | Q37: 1 | R37: 0.5 | S37: Karts | T37: Retenido
A38: Forma de pago | C38: Anual | N38: EMPLEADO/A DE BANCA | O38: empleado/a de banca | P38: - | Q38: - | R38: - | S38: Kayak | T38: Retenido
N39: EMPLEADO/A DE HOGAR | O39: empleado/a de hogar | P39: - | Q39: - | R39: - | S39: Kitesurf (surf con cometa) | T39: Retenido
A40: Total prima anual primera anualidad | C40: =IF(Tarificador!J6="Retenido","Consultar prima por profesión",IF(Tarificador!J5="Retenido","Consultar prima por deporte",IF(Tarificador!Q22<50,"Prima inferior al límite mínimo",IF(Tarificador!G7<30,"Recibo inferior al límite mínimo",IF(B36>B35,"Capital cáncer superior al capital de fallecimiento",IF(B35<18000,"Capital por debajo del límite mínimo",Tarificador!Q22)))))) -> 567.0181062 | N40: ENFERMERO/A O D.U.E. | O40: enfermero/a o d.u.e. | P40: - | Q40: - | R40: - | S40: Lanchas motoras | T40: Retenido
N41: ESTETICIEN/ESTETICISTA | O41: esteticien/esteticista | P41: - | Q41: - | R41: - | S41: Levantamiento de pesas | T41: Retenido
N42: ESTIBADOR | O42: estibador | P42: Retenido | Q42: Retenido | R42: Retenido | S42: Lucha extrema | T42: Retenido
N43: ESTUDIANTE, BECARIO | O43: estudiante, becario | P43: - | Q43: - | R43: - | S43: Montañismo/Alpinismo | T43: Retenido
N44: FARMACEUTICO (SIN FABRIC. DE PRODUCTOS) | O44: farmaceutico (sin fabric. de productos) | P44: - | Q44: - | R44: - | S44: Natación | T44: Sin recargo
N45: FARMACEUTICO/A | O45: farmaceutico/a | P45: - | Q45: - | R45: - | S45: Padel | T45: Sin recargo
N46: FISIOTERAPEUTA | O46: fisioterapeuta | P46: - | Q46: - | R46: - | S46: Paracaidismo, caída libre | T46: Retenido
N47: FONTANERO | O47: fontanero | P47: - | Q47: 1 | R47: 0.5 | S47: Parapente | T47: Retenido
N48: FORESTAL | O48: forestal | P48: Retenido | Q48: Retenido | R48: Retenido | S48: Parkour o yamakasi (saltar entre edificios) | T48: Retenido
N49: FUNCIONARIO PRISIONES (ADMINISTRATIVO) | O49: funcionario prisiones (administrativo) | P49: - | Q49: - | R49: - | S49: Planeador | T49: Retenido
N50: FUNCIONARIO PRISIONES (GUARDIA) | O50: funcionario prisiones (guardia) | P50: - | Q50: 0.5 | R50: 0.5 | S50: Polo | T50: Sin recargo
N51: GERENTE | O51: gerente | P51: - | Q51: - | R51: - | S51: Puenting | T51: Retenido
N52: GUARDIA CIVIL | O52: guardia civil | P52: - | Q52: 0.5 | R52: 0.5 | S52: Quad | T52: Retenido
N53: GUARDIA CIVIL (EXPLOSIVOS) | O53: guardia civil (explosivos) | P53: Retenido | Q53: Retenido | R53: Retenido | S53: Raquetas de nieve | T53: Retenido
N54: HIGIENISTA DENTAL | O54: higienista dental | P54: - | Q54: - | R54: - | S54: Remo | T54: Sin recargo
N55: HOSTELERIA | O55: hosteleria | P55: - | Q55: - | R55: - | S55: Rugby | T55: Retenido
N56: INFORMATICO/A | O56: informatico/a | P56: - | Q56: - | R56: - | S56: Salto base (desde sitios fijos con paracaídas) | T56: Retenido
N57: INGENIERO DE CAMINOS CANALES Y PUERTOS | O57: ingeniero de caminos canales y puertos | P57: - | Q57: - | R57: - | S57: Senderismo | T57: Sin recargo
N58: INGENIERO INDUSTRIAL | O58: ingeniero industrial | P58: - | Q58: - | R58: - | S58: Skydiving (paracaidismo con instructor) | T58: Retenido
N59: INGENIERO TECNICO | O59: ingeniero tecnico | P59: - | Q59: - | R59: - | S59: Skysurfing (surfeo aéreo con tabla) | T59: Retenido
N60: INGENIERO/A | O60: ingeniero/a | P60: - | Q60: - | R60: - | S60: Squash | T60: Sin recargo
N61: INGENIERO/A DE TELECOMUNICACIONES | O61: ingeniero/a de telecomunicaciones | P61: - | Q61: - | R61: - | S61: Streetluge (trineo de asfalto) | T61: Retenido
N62: INGENIERO/A INFORMATICO | O62: ingeniero/a informatico | P62: - | Q62: - | R62: - | S62: Surf, surfski | T62: Sin recargo
N63: LIMPIADOR/A | O63: limpiador/a | P63: - | Q63: 1 | R63: 0.5 | S63: Tiro olímpico | T63: Retenido
N64: LIMPIEZA DOMÉSTICA/LOCALES | O64: limpieza doméstica/locales | P64: - | Q64: 1 | R64: 0.5 | S64: Trekking | T64: Retenido
N65: MECÁNICO AERONAVES | O65: mecánico aeronaves | P65: - | Q65: - | R65: - | S65: Ultraligero | T65: Retenido
N66: MECÁNICO COCHES/MOTOS | O66: mecánico coches/motos | P66: - | Q66: 0.5 | R66: 0.5 | S66: Vela (amateur aguas costeras) | T66: Sin recargo
N67: MEDICO | O67: =LOWER(N67) -> medico | P67: - | Q67: - | R67: - | S67: Vela (amateur mar adentro y transoceánico) | T67: Retenido
N68: MILITAR (OFICIAL) | O68: militar (oficial) | P68: - | Q68: - | R68: 0.5 | S68: Waterpolo | T68: Sin recargo
N69: MILITAR (OTROS RANGOS) | O69: militar (otros rangos) | Q69: 0.5 | R69: 1 | S69: Wingsuit (traje aéreo, paracaidismo) | T69: Retenido
N70: MILITAR (RESERVA) | O70: militar (reserva) | P70: - | Q70: - | R70: -
N71: MONTADOR ANDAMIAJE | O71: montador andamiaje | P71: Retenido | Q71: Retenido | R71: Retenido
N72: ODONTOLOGO/A | O72: odontologo/a | P72: - | Q72: - | R72: -
N73: OPERADOR ALTURA | O73: operador altura | P73: Retenido | Q73: Retenido | R73: Retenido
N74: OPERADOR GRÚA | O74: operador grúa | P74: Retenido | Q74: Retenido | R74: Retenido
N75: OPERADOR PLANTA REFINO | O75: operador planta refino | P75: - | Q75: 2 | R75: 1
N76: OPERARIO CADENA PRODUCCIÓN | O76: operario cadena producción | P76: - | Q76: 0.5 | R76: -
N77: OTROS (CONSTRUCCION) | O77: otros (construccion) | P77: - | Q77: 1 | R77: 1
N78: PELUQUERO/A | O78: peluquero/a | P78: - | Q78: - | R78: -
N79: PEÓN | O79: peón | P79: - | Q79: 1 | R79: 1
N80: PERIODISTA | O80: periodista | P80: - | Q80: - | R80: -
N81: PILOTO comercial mercancias | O81: piloto comercial mercancias | P81: Retenido | Q81: Retenido | R81: Retenido
N82: PILOTO comercial tripulación | O82: piloto comercial tripulación | P82: - | Q82: - | R82: 0.5
N83: PINTOR | O83: pintor | P83: - | Q83: 1 | R83: 1
N84: POLICIA LOCAL | O84: policia local | P84: - | Q84: - | R84: -
N85: POLICIA NACIONAL, MOSSO D'ESQUADRA | O85: policia nacional, mosso d'esquadra | P85: - | Q85: 0.5 | R85: 0.5
N86: PROFESOR/A O MAESTRO/A | O86: profesor/a o maestro/a | P86: - | Q86: - | R86: -
N87: PSICOLOGO/A | O87: psicologo/a | P87: - | Q87: - | R87: -
N88: PSICOLOGO/A CLINICA | O88: psicologo/a clinica | P88: - | Q88: - | R88: -
N89: PUBLICISTA | O89: publicista | P89: - | Q89: - | R89: -
N90: QUIMICO/A | O90: quimico/a | P90: - | Q90: - | R90: -
N91: RECEPCIONISTA | O91: recepcionista | P91: - | Q91: - | R91: -
N92: SECRETARIO/A | O92: secretario/a | P92: - | Q92: - | R92: -
N93: TAXISTA | O93: taxista | P93: - | Q93: 0.5 | R93: 1
N94: TECNICO MANTENIMIENTO | O94: tecnico mantenimiento | P94: - | Q94: 0.5 | R94: 0.5
N95: TRABAJADOR/A SOCIAL | O95: trabajador/a social | P95: - | Q95: - | R95: -
N96: TRADUCTOR/A | O96: traductor/a | P96: - | Q96: - | R96: -
N97: TRANSPORTISTA | O97: transportista | P97: - | Q97: 1 | R97: 1
N98: VENDEDOR/A | O98: vendedor/a | P98: - | Q98: - | R98: -
N99: VIGILANTE SEGURIDAD | O99: vigilante seguridad | P99: - | Q99: 0.5 | R99: 1
N100: YESERO | O100: yesero | P100: - | Q100: 1 | R100: 0.5

Sheet Presupuesto (hidden)
B11: Presupuesto de Seguro Asisa Vida Mujer
C14: Fecha efecto | D14: ='Datos entrada'!$B$16 -> 2017-01-01
B17: A continuación le presentamos su presupuesto personalizado de Vida Riesgo, que ha sido diseñado especialmente para usted de acuerdo con la información que nos ha facilitado.
F19: 1 | G19: Anual
B20: Datos del asegurado | F20: 2 | G20: Semestral
B21: Nombre: | C21: ='Datos entrada'!C20 -> Sra.Silvia Pose | F21: 4 | G21: Trimestral
B22: Fecha de nacimiento: | D22: ='Datos entrada'!C19 -> 1967-03-20 | F22: 12 | G22: Mensual
B23: Edad actuarial: | D23: ='Datos entrada'!C23 -> 50
B24: Sexo: | D24: ='Datos entrada'!C21 -> Mujer
B25: NIF: | D25: ='Datos entrada'!C22 -> xxxxx
B26: Forma de pago | D26: ='Datos entrada'!C38 -> Anual
B28: Servicios, garantías, capitales solicitados y prima
B29: Servicios y garantías | C29: Capitales asegurados
B31: Testamento on-line | C31: Incluido
B32: Testamento vital | C32: Incluido
B33: Servicio ayuda a domicilio | C33: Incluido
B34: Gastos para adquisición peluca | C34: Incluido
B35: Gastos de lavado de peluca y cabeza | C35: Incluido
B36: Gastos para cursos de estética | C36: Incluido
B37: Asesoramiento médico telefónico 24 x 365 | C37: Incluido
B38: Revisión dental | C38: Incluido
B39: Acceso exclusivo club Asisa Mujer | C39: Incluido
B40: Donación 5% prima neta al Centro Nacional de Investigaciones Oncológicas Carlos III | C40: Incluido
B41: Adecuación vivienda por IPA por accidente | C41: =IF('Datos entrada'!C31="No","No incluido", "Incluido") -> Incluido
B42: Adecuación vehiculo por IPA por accidente | C42: =IF('Datos entrada'!C31="No","No incluido", "Incluido") -> Incluido
B43: Asesoramiento jurídico telefónico | C43: =IF('Datos entrada'!C31="No","No incluido", "Incluido") -> Incluido
B44: Servicio de ayuda legal 24 horas | C44: =IF('Datos entrada'!C31="No","No incluido", "Incluido") -> Incluido
B45: Cancer ginecológico | C45: =Tarificador!B10 -> 10000
B46: Fallecimiento | C46: =Tarificador!B9 -> 100000
B47: Incapacidad permanente absoluta | C47: =Tarificador!B11 -> 100000
B48: Total prima neta: | D48: =IF('Datos entrada'!B35<18000,"-",IF('Datos entrada'!B36>'Datos entrada'!B35,"-",IF(Tarificador!Q22<50,"-",IF(Tarificador!G7<30,"-",Tarificador!O22)))) -> 553.2292333
B49: Total impuestos repercutibles: | D49: =IF('Datos entrada'!B35<18000,"-",IF('Datos entrada'!B36>'Datos entrada'!B35,"-",IF(Tarificador!Q22<50,"-",IF(Tarificador!G7<30,"-",Tarificador!P22)))) -> 13.78887285
B50: Total prima primera anualidad: | D50: =IF(Tarificador!G7<30,"Recibo inferior al límite mínimo",IF(Tarificador!Q22<50,"Prima inferior límite mínimo",IF('Datos entrada'!B36>'Datos entrada'!B35,"Capital cáncer superior al capital de fallecimiento",IF('Datos entrada'!B35<18000,"Capital por debajo del límite mínimo",Tarificador!Q22)))) -> 567.0181062
B51: Importe primer recibo: | D51: =IF(Tarificador!G7<30,"-",Tarificador!G7) -> -
B52: Importe recibos siguientes: | D52: =IF(Tarificador!G7<30,"-",Tarificador!G6) -> -
B54: (*) Este presupuesto es de carácter informativo y no vincula a la aceptación del capital, garantías y primas en él reflejadas que
B55: dependen de la valoración y aceptación del riesgo en base a la política de suscripción Asisa Vida.
B58: ASISA VIDA SEGUROS, S.A.
B59: C.I.F.: A87425070 | D59: Inscrita al Tomo 34.096, Folio 49, Sección 8 Hoja
B60: Domicilio social: c/ Juan Ignacio Luca de Tena, 12, 28027 Madrid | D60: M-613345, Inscripción 1ª. C
C62: =CONCATENATE(Tarificador!K4,Tarificador!K9) -> Ref.-

Sheet Nota Informativa (hidden)

Sheet Solicitud (hidden)

Sheet Tarificador (hidden)
A1: Tarificador TAR Asisa Vida Mujer
D4: PRIMA ANUAL | E4: =Q22 -> 567.0181062 | K4: Ref. | L4: Versión
A5: Edad: | B5: ='Datos entrada'!C23 -> 50 | D5: Prima anual sin consorcio | G5: =IF(B7="Anual","-",H22+I22+J22+K22+L22) -> - | I5: ='Datos entrada'!C24 -> Sin práctica deportiva/ocio de riesgo | J5: =VLOOKUP(I5,'Datos entrada'!S2:T69,2,0) -> Sin recargo
D6: Importe por recibo | G6: =IF(B7="Anual","-",IF(B7="Anual",(H22+I22+J22)/1,IF(B7="Semestral",(H22+I22+J22)/2,IF(B7="Trimestral",(H22+I22+J22)/4,(H22+I22+J22)/12)))) -> - | I6: ='Datos entrada'!C25 -> administrativo/a | J6: =VLOOKUP(I6,'Datos entrada'!O2:R100,2,0) -> - | K6: =VLOOKUP(I6,'Datos entrada'!O2:R100,3,0) -> - | L6: =VLOOKUP(I6,'Datos entrada'!O2:R100,4,0) -> -
A7: Periodicidad | B7: ='Datos entrada'!C38 -> Anual | D7: Importe primer recibo | G7: =IF(B7="Anual","-",G6+L22+K22) -> - | J7: =IF(J6="Retenido","No","Si") -> Si | K7: =IF(K6="Retenido","No","Si") -> Si | L7: Si
J8: =IF(J7="Si",IF(J6="-",0,J6),"") -> 0 | K8: =IF(K7="Si",IF(K6="-",0,K6),"") -> 0 | L8: 0
A9: Capital fallec. | B9: ='Datos entrada'!B35 -> 100000 | K9: =IF(K6="Retenido","-",K6) -> - | L9: =IF(L6="Retenido","-",L6) -> -
A10: Capital cancer | B10: ='Datos entrada'!B36 -> 10000
A11: Capital IPA | B11: =IF('Datos entrada'!C30="Si",0,B9) -> 100000
A13: Gastos internos | B13: 0.1
A14: Gastos externos | B14: 0.4
I15: Recargo | N15: Garantias | O15: Prima total | Q15: Prima total
D16: Prima Pura | E16: Gastos interno | F16: Gasto fijo | G16: Gastos externos | H16: Prima comercial neta | I16: Fracci. | J16: IPS | K16: CLEA | L16: Consorcio | M16: Prima total | N16: Seleccionadas | O16: neta | P16: Solo Impuestos | Q16: primera anualidad
A17: Fallecimiento | D17: =VLOOKUP(B5,Tasas!A2:K59,6,0)/1000*B9*(1+J8) -> 183.9 | E17: =$B$13*D17 -> 18.39 | F17: 0 | G17: =$B$14*H17 -> 134.86 | H17: =D17*(1+$B$13)/(1-$B$14) -> 337.15 | I17: =VLOOKUP($B$7,'Recargos por fracc'!$A$1:$B$4,2,0)*H17 -> 0 | L17: =($B$9/1000)*0.005 -> 0.5 | M17: =SUM(H17:L17) -> 337.65 | N17: Si | O17: =IF(N17="Si",H17+I17,0) -> 337.15 | P17: =IF(N17="Si",SUM(J17:L17),0) -> 0.5 | Q17: =IF(N17="Si",M17,0) -> 337.65
A18: Cancer ginecologico | D18: =VLOOKUP(B5,Tasas!A2:K59,8,0)/1000*B10 -> 37.1175 | E18: =$B$13*D18 -> 3.71175 | F18: 0 | G18: =$B$14*H18 -> 27.2195 | H18: =D18*(1+$B$13)/(1-$B$14) -> 68.04875 | I18: =VLOOKUP($B$7,'Recargos por fracc'!$A$1:$B$4,2,0)*H18 -> 0 | J18: =(H18+I18)*0.06 -> 4.082925 | K18: =(H18+I18)*0.0015 -> 0.102073125 | M18: =SUM(H18:L18) -> 72.23374813 | N18: Si | O18: =IF(N18="Si",H18+I18,0) -> 68.04875 | P18: =IF(N18="Si",SUM(J18:L18),0) -> 4.184998125 | Q18: 72.23374813
A19: Pack A servicios | D19: =('Primas servicios proveedores'!B3+'Primas servicios proveedores'!B19)*(1+21%) -> 7.3326 | E19: 0.73326 | F19: 0 | G19: 5.37724 | H19: 13.4431 | I19: =VLOOKUP($B$7,'Recargos por fracc'!$A$1:$B$4,2,0)*H19 -> 0 | J19: =(H19+I19)*0.06 -> 0.806586 | K19: =(H19+I19)*0.0015 -> 0.02016465 | M19: =SUM(H19:L19) -> 14.26985065 | N19: Si | O19: =IF(N19="Si",H19+I19,0) -> 13.4431 | P19: =IF(N19="Si",SUM(J19:L19),0) -> 0.82675065 | Q19: 14.26985065
A20: IPA | D20: =VLOOKUP(B5,Tasas!A2:K59,10,0)/1000*B11*(1+K8) -> 70.35 | E20: 7.035 | F20: 0 | G20: 51.59 | H20: 128.975 | I20: =VLOOKUP($B$7,'Recargos por fracc'!$A$1:$B$4,2,0)*H20 -> 0 | J20: 7.7385 | K20: 0.1934625 | M20: =SUM(H20:L20) -> 136.9069625 | N20: ='Datos entrada'!C31 -> SI | O20: =IF(N20="Si",H20+I20,0) -> 128.975 | P20: =IF(N20="Si",SUM(J20:L20),0) -> 7.9319625 | Q20: 136.9069625
A21: Pack B servicios | D21: =IF(N21="No",0,'Primas servicios proveedores'!B12*(1+21%)) -> 3.0613 | E21: 0.30613 | F21: 0 | G21: 2.244953333 | H21: 5.612383333 | I21: =VLOOKUP($B$7,'Recargos por fracc'!$A$1:$B$4,2,0)*H21 -> 0 | J21: 0.336743 | K21: 0.008418575 | M21: =SUM(H21:L21) -> 5.957544908 | N21: =IF(N20="Si","Si","No") -> Si | O21: =IF(N21="Si",H21+I21,0) -> 5.612383333 | P21: =IF(N21="Si",SUM(J21:L21),0) -> 0.345161575 | Q21: 5.957544908
A22: Totales | D22: =SUM(D17:D21) -> 301.7614 | E22: 30.17614 | F22: 0 | G22: 221.2916933 | H22: 553.2292333 | I22: 0 | J22: 12.964754 | K22: 0.32411885 | L22: 0.5 | M22: 567.0181062 | O22: =SUM(O17:O21) -> 553.2292333 | P22: =SUM(P17:P21) -> 13.78887285 | Q22: =IF(B9>300000,"Capital superior al limite",SUM(Q17:Q21)) -> 567.0181062

Sheet Tasas (hidden)
A1: Edades | B1: Tasa reaseguro neta fallecimiento pdo. Mujer | C1: Tasa reaseguro neta cáncer femenino pdo. Mujer | D1: Tasa reaseguro neta IPA pdo. Mujer | E1: PASEM 2010 mujeres publicada DGSFP | F1: Tasa directo fallecimiento (75% pasem 2010 mujeres) | G1: Margen sobre tasa reaseguro fallecimiento | H1: Tasa directo neta cáncer femenino | I1: Margen sobre tasa reaseguro cancer | J1: Tasa directo neta IPA | K1: Margen sobre tasa reaseguro ipa
A2: 18 | B2: 0.195 | C2: 0.021 | D2: 0.2 | E2: 0.3 | F2: =E2*75% -> 0.225 | G2: =(F2-B2)/B2 -> 0.1538461538 | H2: =C2*1.05 -> 0.02205 | I2: =(H2-C2)/C2 -> 0.05 | J2: =D2*1.05 -> 0.21 | K2: =(J2-D2)/D2 -> 0.05 | M2: 18 | N2: 0.19 | O2: 0.247
A3: 19 | B3: 0.2028 | C3: 0.024 | D3: 0.2 | E3: 0.312 | F3: =E3*75% -> 0.234 | G3: =(F3-B3)/B3 -> 0.1538461538 | H3: =C3*1.05 -> 0.0252 | I3: =(H3-C3)/C3 -> 0.05 | J3: =D3*1.05 -> 0.21 | K3: =(J3-D3)/D3 -> 0.05 | M3: 19 | N3: 0.19 | O3: 0.247
A4: 20 | B4: 0.2067 | C4: 0.03 | D4: 0.2 | E4: 0.318 | F4: 0.2385 | G4: 0.1538461538 | H4: 0.0315 | I4: 0.05 | J4: 0.21 | K4: 0.05 | M4: 20 | N4: 0.19 | O4: 0.247
A5: 21 | B5: 0.20735 | C5: 0.04 | D5: 0.2 | E5: 0.319 | F5: 0.23925 | G5: 0.1538461538 | H5: 0.042 | I5: 0.05 | J5: 0.21 | K5: 0.05 | M5: 21 | N5: 0.19 | O5: 0.247
A6: 22 | B6: 0.20605 | C6: 0.052 | D6: 0.2 | E6: 0.317 | F6: 0.23775 | G6: 0.1538461538 | H6: 0.0546 | I6: 0.05 | J6: 0.21 | K6: 0.05 | M6: 22 | N6: 0.19 | O6: 0.247
A7: 23 | B7: 0.20475 | C7: 0.066 | D7: 0.2 | E7: 0.315 | F7: 0.23625 | G7: 0.1538461538 | H7: 0.0693 | I7: 0.05 | J7: 0.21 | K7: 0.05 | M7: 23 | N7: 0.19 | O7: 0.247
A8: 24 | B8: 0.20605 | C8: 0.086 | D8: 0.2 | E8: 0.317 | F8: 0.23775 | G8: 0.1538461538 | H8: 0.0903 | I8: 0.05 | J8: 0.21 | K8: 0.05 | M8: 24 | N8: 0.19 | O8: 0.247
A9: 25 | B9: 0.2093 | C9: 0.109 | D9: 0.2 | E9: 0.322 | F9: 0.2415 | G9: 0.1538461538 | H9: 0.11445 | I9: 0.05 | J9: 0.21 | K9: 0.05 | M9: 25 | N9: 0.19 | O9: 0.247
A10: 26 | B10: 0.19565 | C10: 0.138 | D10: 0.2 | E10: 0.301 | F10: 0.22575 | G10: 0.1538461538 | H10: 0.1449 | I10: 0.05 | J10: 0.21 | K10: 0.05 | M10: 26 | N10: 0.19 | O10: 0.247
A11: 27 | B11: 0.1885 | C11: 0.173 | D11: 0.2 | E11: 0.29 | F11: 0.2175 | G11: 0.1538461538 | H11: 0.18165 | I11: 0.05 | J11: 0.21 | K11: 0.05 | M11: 27 | N11: 0.19 | O11: 0.247
A12: 28 | B12: 0.1846 | C12: 0.213 | D12: 0.2 | E12: 0.284 | F12: 0.213 | G12: 0.1538461538 | H12: 0.22365 | I12: 0.05 | J12: 0.21 | K12: 0.05 | M12: 28 | N12: 0.19 | O12: 0.247
A13: 29 | B13: 0.1833 | C13: 0.262 | D13: 0.2 | E13: 0.282 | F13: 0.2115 | G13: 0.1538461538 | H13: 0.2751 | I13: 0.05 | J13: 0.21 | K13: 0.05 | M13: 29 | N13: 0.19 | O13: 0.247
A14: 30 | B14: 0.18005 | C14: 0.319 | D14: 0.18 | E14: 0.277 | F14: 0.20775 | G14: 0.1538461538 | H14: 0.33495 | I14: 0.05 | J14: 0.189 | K14: 0.05 | M14: 30 | N14: 0.19 | O14: 0.247
A15: 31 | B15: 0.19565 | C15: 0.385 | D15: 0.18 | E15: 0.301 | F15: 0.22575 | G15: 0.1538461538 | H15: 0.40425 | I15: 0.05 | J15: 0.189 | K15: 0.05 | M15: 31 | N15: 0.19 | O15: 0.247
A16: 32 | B16: 0.2132 | C16: 0.462 | D16: 0.18 | E16: 0.328 | F16: 0.246 | G16: 0.1538461538 | H16: 0.4851 | I16: 0.05 | J16: 0.189 | K16: 0.05 | M16: 32 | N16: 0.19 | O16: 0.247
A17: 33 | B17: 0.2353 | C17: 0.556 | D17: 0.18 | E17: 0.362 | F17: 0.2715 | G17: 0.1538461538 | H17: 0.5838 | I17: 0.05 | J17: 0.189 | K17: 0.05 | M17: 33 | N17: 0.19 | O17: 0.247
A18: 34 | B18: 0.2691 | C18: 0.663 | D18: 0.18 | E18: 0.414 | F18: 0.3105 | G18: 0.1538461538 | H18: 0.69615 | I18: 0.05 | J18: 0.189 | K18: 0.05 | M18: 34 | N18: 0.19 | O18: 0.247
A19: 35 | B19: 0.3107 | C19: 0.787 | D19: 0.2 | E19: 0.478 | F19: 0.3585 | G19: 0.1538461538 | H19: 0.82635 | I19: 0.05 | J19: 0.21 | K19: 0.05 | M19: 35 | N19: 0.2 | O19: 0.284
A20: 36 | B20: 0.3614 | C20: 0.926 | D20: 0.2 | E20: 0.556 | F20: 0.417 | G20: 0.1538461538 | H20: 0.9723 | I20: 0.05 | J20: 0.21 | K20: 0.05 | M20: 36 | N20: 0.21 | O20: 0.284
A21: 37 | B21: 0.41665 | C21: 1.075 | D21: 0.2 | E21: 0.641 | F21: 0.48075 | G21: 0.1538461538 | H21: 1.12875 | I21: 0.05 | J21: 0.21 | K21: 0.05 | M21: 37 | N21: 0.23 | O21: 0.284
A22: 38 | B22: 0.4758 | C22: 1.234 | D22: 0.2 | E22: 0.732 | F22: 0.549 | G22: 0.1538461538 | H22: 1.2957 | I22: 0.05 | J22: 0.21 | K22: 0.05 | M22: 38 | N22: 0.26 | O22: 0.284
A23: 39 | B23: 0.5512 | C23: 1.396 | D23: 0.2 | E23: 0.848 | F23: 0.636 | G23: 0.1538461538 | H23: 1.4658 | I23: 0.05 | J23: 0.21 | K23: 0.05 | M23: 39 | N23: 0.28 | O23: 0.284
A24: 40 | B24: 0.6357 | C24: 1.562 | D24: 0.24 | E24: 0.978 | F24: 0.7335 | G24: 0.1538461538 | H24: 1.6401 | I24: 0.05 | J24: 0.252 | K24: 0.05 | M24: 40 | N24: 0.31 | O24: 0.33
A25: 41 | B25: 0.72605 | C25: 1.732 | D25: 0.27 | E25: 1.117 | F25: 0.83775 | G25: 0.1538461538 | H25: 1.8186 | I25: 0.05 | J25: 0.2835 | K25: 0.05 | M25: 41 | N25: 0.34 | O25: 0.377
A26: 42 | B26: 0.81315 | C26: 1.912 | D26: 0.3 | E26: 1.251 | F26: 0.93825 | G26: 0.1538461538 | H26: 2.0076 | I26: 0.05 | J26: 0.315 | K26: 0.05 | M26: 42 | N26: 0.36 | O26: 0.429
A27: 43 | B27: 0.8905 | C27: 2.104 | D27: 0.35 | E27: 1.37 | F27: 1.0275 | G27: 0.1538461538 | H27: 2.2092 | I27: 0.05 | J27: 0.3675 | K27: 0.05 | M27: 43 | N27: 0.39 | O27: 0.486
A28: 44 | B28: 0.96005 | C28: 2.306 | D28: 0.4 | E28: 1.477 | F28: 1.10775 | G28: 0.1538461538 | H28: 2.4213 | I28: 0.05 | J28: 0.42 | K28: 0.05 | M28: 44 | N28: 0.42 | O28: 0.547
A29: 45 | B29: 1.0309 | C29: 2.516 | D29: 0.43 | E29: 1.586 | F29: 1.1895 | G29: 0.1538461538 | H29: 2.6418 | I29: 0.05 | J29: 0.4515 | K29: 0.05 | M29: 45 | N29: 0.45 | O29: 0.61
A30: 46 | B30: 1.10955 | C30: 2.731 | D30: 0.48 | E30: 1.707 | F30: 1.28025 | G30: 0.1538461538 | H30: 2.86755 | I30: 0.05 | J30: 0.504 | K30: 0.05 | M30: 46 | N30: 0.49 | O30: 0.656
A31: 47 | B31: 1.2025 | C31: 2.943 | D31: 0.52 | E31: 1.85 | F31: 1.3875 | G31: 0.1538461538 | H31: 3.09015 | I31: 0.05 | J31: 0.546 | K31: 0.05 | M31: 47 | N31: 0.53 | O31: 0.709
A32: 48 | B32: 1.31105 | C32: 3.151 | D32: 0.55 | E32: 2.017 | F32: 1.51275 | G32: 0.1538461538 | H32: 3.30855 | I32: 0.05 | J32: 0.5775 | K32: 0.05 | M32: 48 | N32: 0.58 | O32: 0.77
A33: 49 | B33: 1.4417 | C33: 3.348 | D33: 0.6 | E33: 2.218 | F33: 1.6635 | G33: 0.1538461538 | H33: 3.5154 | I33: 0.05 | J33: 0.63 | K33: 0.05 | M33: 49 | N33: 0.62 | O33: 0.837
A34: 50 | B34: 1.5938 | C34: 3.535 | D34: 0.67 | E34: 2.452 | F34: 1.839 | G34: 0.1538461538 | H34: 3.71175 | I34: 0.05 | J34: 0.7035 | K34: 0.05 | M34: 50 | N34: 0.68 | O34: 0.912
A35: 51 | B35: 1.77125 | C35: 3.705 | D35: 0.7 | E35: 2.725 | F35: 2.04375 | G35: 0.1538461538 | H35: 3.89025 | I35: 0.05 | J35: 0.735 | K35: 0.05 | M35: 51 | N35: 0.73 | O35: 0.998
A36: 52 | B36: 1.9578 | C36: 3.865 | D36: 0.75 | E36: 3.012 | F36: 2.259 | G36: 0.1538461538 | H36: 4.05825 | I36: 0.05 | J36: 0.7875 | K36: 0.05 | M36: 52 | N36: 0.79 | O36: 1.093
A37: 53 | B37: 2.132 | C37: 4.012 | D37: 0.8 | E37: 3.28 | F37: 2.46 | G37: 0.1538461538 | H37: 4.2126 | I37: 0.05 | J37: 0.84 | K37: 0.05 | M37: 53 | N37: 0.86 | O37: 1.174
A38: 54 | B38: 2.28605 | C38: 4.148 | D38: 0.9 | E38: 3.517 | F38: 2.63775 | G38: 0.1538461538 | H38: 4.3554 | I38: 0.05 | J38: 0.945 | K38: 0.05 | M38: 54 | N38: 0.94 | O38: 1.262
A39: 55 | B39: 2.4258 | C39: 4.267 | D39: 1 | E39: 3.732 | F39: 2.799 | G39: 0.1538461538 | H39: 4.48035 | I39: 0.05 | J39: 1.05 | K39: 0.05 | M39: 55 | N39: 1.02 | O39: 1.352
A40: 56 | B40: 2.56555 | C40: 4.36 | D40: 1.221 | E40: 3.947 | F40: 2.96025 | G40: 0.1538461538 | H40: 4.578 | I40: 0.05 | J40: 1.28205 | K40: 0.05 | M40: 56 | N40: 1.11 | O40: 1.672
A41: 57 | B41: 2.70985 | C41: 4.431 | D41: 1.331 | E41: 4.169 | F41: 3.12675 | G41: 0.1538461538 | H41: 4.65255 | I41: 0.05 | J41: 1.39755 | K41: 0.05 | M41: 57 | N41: 1.21 | O41: 1.782
A42: 58 | B42: 2.85545 | C42: 4.483 | D42: 1.452 | E42: 4.393 | F42: 3.29475 | G42: 0.1538461538 | H42: 4.70715 | I42: 0.05 | J42: 1.5246 | K42: 0.05 | M42: 58 | N42: 1.32 | O42: 1.883
A43: 59 | B43: 2.9887 | C43: 4.517 | D43: 1.573 | E43: 4.598 | F43: 3.4485 | G43: 0.1538461538 | H43: 4.74285 | I43: 0.05 | J43: 1.65165 | K43: 0.05 | M43: 59 | N43: 1.43 | O43: 1.983
A44: 60 | B44: 3.12065 | C44: 4.538 | D44: 1.727 | E44: 4.801 | F44: 3.60075 | G44: 0.1538461538 | H44: 4.7649 | I44: 0.05 | J44: 1.81335 | K44: 0.05 | M44: 60 | N44: 1.57 | O44: 2.073
A45: 61 | B45: 3.2695 | C45: 4.544 | D45: 1.881 | E45: 5.03 | F45: 3.7725 | G45: 0.1538461538 | H45: 4.7712 | I45: 0.05 | J45: 1.97505 | K45: 0.05 | M45: 61 | N45: 1.71 | O45: 2.154
A46: 62 | B46: 3.44045 | C46: 4.535 | D46: 2.057 | E46: 5.293 | F46: 3.96975 | G46: 0.1538461538 | H46: 4.76175 | I46: 0.05 | J46: 2.15985 | K46: 0.05 | M46: 62 | N46: 1.87 | O46: 2.232
A47: 63 | B47: 3.6387 | C47: 4.514 | D47: 2.244 | E47: 5.598 | F47: 4.1985 | G47: 0.1538461538 | H47: 4.7397 | I47: 0.05 | J47: 2.3562 | K47: 0.05 | M47: 63 | N47: 2.04 | O47: 2.34
A48: 64 | B48: 3.8896 | C48: 4.476 | D48: 2.453 | E48: 5.984 | F48: 4.488 | G48: 0.1538461538 | H48: 4.6998 | I48: 0.05 | J48: 2.57565 | K48: 0.05 | M48: 64 | N48: 2.23 | O48: 2.438
A49: 65 | B49: 4.22565 | C49: 4.418 | D49: 2.697 | E49: 6.501 | F49: 4.87575 | G49: 0.1538461538 | H49: 4.6389 | I49: 0.05 | J49: 2.83185 | K49: 0.05
A50: 66 | B50: 4.6462 | C50: 4.418 | D50: 2.967 | E50: 7.148 | F50: 5.361 | G50: 0.1538461538 | H50: 4.6389 | I50: 0.05 | J50: 3.11535 | K50: 0.05
A51: 67 | B51: 5.15515 | C51: 4.418 | D51: 3.263 | E51: 7.931 | F51: 5.94825 | G51: 0.1538461538 | H51: 4.6389 | I51: 0.05 | J51: 3.42615 | K51: 0.05
A52: 68 | B52: 5.7707 | E52: 8.878 | F52: 6.6585 | G52: 0.1538461538
A53: 69 | B53: 6.4948 | E53: 9.992 | F53: 7.494 | G53: 0.1538461538
A54: 70 | B54: 7.32355 | E54: 11.267 | F54: 8.45025 | G54: 0.1538461538
A55: 71 | B55: 8.25825 | E55: 12.705 | F55: 9.52875 | G55: 0.1538461538
A56: 72 | B56: 9.30345 | E56: 14.313 | F56: 10.73475 | G56: 0.1538461538
A57: 73 | B57: 11.4257 | E57: 17.578 | F57: 13.1835 | G57: 0.1538461538
A58: 74 | B58: 14.0829 | E58: 21.666 | F58: 16.2495 | G58: 0.1538461538
A59: 75 | B59: 17.47525 | E59: 26.885 | F59: 20.16375 | G59: 0.1538461538

Sheet Recargos por fracc (hidden)
A1: Anual | B1: 0
A2: Trimestral | B2: 0.01
A3: Semestral | B3: 0.02
A4: Mensual | B4: 0.03

Sheet Primas servicios proveedores (hidden)
A1: Precio servicios | B1: Primas cobradas por los proveedores | C1: Nombre proveedor
A3: PACK A | B3: 5.31 | C3: Europ Assistance
A5: Testamento online
A6: Testamento vital
A7: Gasto adquisicion peluca
A8: Gasto de lavado de peluca y cabeza
A9: Gasto para curso de estética
A10: Servicios ayuda a domicilio
A12: PACK B | B12: 2.53 | C12: Europ Assistance
A14: Adecuación vivivenda por IPA por acc.
A15: Adecuación vehículo por IPA por acc.
A16: Asesoramiento jurídico telefónico
A17: Servicio ayuda legal 24 horas
A19: PACK C | B19: 0.75
A21: Asesoramiento medico telefonocio 24x 365 | C21: Asiser
A22: Revisión dental | C22: Asisa dental
